[Event "*** Titled Tuesday Blitz"]
[Site "Chess.com"]
[Date "2021.03.09"]
[Round "1"]
[White "dodorox"]
[Black "Moon_stone123"]
[Result "1/2-1/2"]
[WhiteElo "2130"]
[BlackElo "2504"]
[TimeControl "180+1"]
[EndTime "10:09:07 PST"]
[Termination "Game drawn - insufficient material"]

1. d4 {[%clk 0:02:58.2]} 1... Nf6 {[%clk 0:02:59.2]} 2. c4 {[%clk 0:02:56.5]}
2... g6 {[%clk 0:02:58.5]} 3. Nc3 {[%clk 0:02:56.7]} 3... Bg7 {[%clk 0:02:57.9]}
4. e4 {[%clk 0:02:56.3]} 4... O-O {[%clk 0:02:58.5]} 5. Nf3 {[%clk 0:02:56.8]}
5... d6 {[%clk 0:02:58.9]} 6. h3 {[%clk 0:02:57.3]} 6... Na6 {[%clk 0:02:58.2]}
7. Bg5 {[%clk 0:02:54.7]} 7... c6 {[%clk 0:02:57]} 8. Be2 {[%clk 0:02:46.1]}
8... e5 {[%clk 0:02:56.7]} 9. d5 {[%clk 0:02:46.1]} 9... h6 {[%clk 0:02:49.3]}
10. Be3 {[%clk 0:02:43.8]} 10... Nc5 {[%clk 0:02:33.5]} 11. Nd2 {[%clk
0:02:36.9]} 11... a5 {[%clk 0:02:13.5]} 12. a3 {[%clk 0:02:20.5]} 12... cxd5
{[%clk 0:02:07.9]} 13. cxd5 {[%clk 0:02:14.6]} 13... Nh7 {[%clk 0:02:04.1]} 14.
b4 {[%clk 0:02:01.4]} 14... axb4 {[%clk 0:01:56.5]} 15. axb4 {[%clk 0:02:02.3]}
15... Rxa1 {[%clk 0:01:55.2]} 16. Qxa1 {[%clk 0:02:03.2]} 16... Na6 {[%clk
0:01:54.9]} 17. b5 {[%clk 0:01:29.5]} 17... Nc5 {[%clk 0:01:51]} 18. Bxc5 {[%clk
0:01:26.8]} 18... dxc5 {[%clk 0:01:51.9]} 19. Nc4 {[%clk 0:01:26.7]} 19... f5
{[%clk 0:01:49.4]} 20. Qa7 {[%clk 0:01:15.8]} 20... Nf6 {[%clk 0:01:11.4]} 21.
Qxc5 {[%clk 0:01:13.7]} 21... Nxe4 {[%clk 0:01:07]} 22. Nxe4 {[%clk 0:01:12]}
22... fxe4 {[%clk 0:01:07.9]} 23. O-O {[%clk 0:01:09.7]} 23... Qg5 {[%clk
0:01:02]} 24. Kh2 {[%clk 0:01:03.2]} 24... h5 {[%clk 0:00:54.7]} 25. Nd6 {[%clk
0:00:59.5]} 25... Qe7 {[%clk 0:00:51.4]} 26. Nxb7 {[%clk 0:00:57.5]} 26... Qxb7
{[%clk 0:00:50.8]} 27. Qc6 {[%clk 0:00:52.9]} 27... Qf7 {[%clk 0:00:48.5]} 28.
d6 {[%clk 0:00:50.5]} 28... Bd7 {[%clk 0:00:47.7]} 29. Bc4 {[%clk 0:00:43.6]}
29... Bxc6 {[%clk 0:00:37.9]} 30. Bxf7+ {[%clk 0:00:42.8]} 30... Kxf7 {[%clk
0:00:38.8]} 31. bxc6 {[%clk 0:00:42.3]} 31... Ke6 {[%clk 0:00:37.7]} 32. Rd1
{[%clk 0:00:35.7]} 32... Bf6 {[%clk 0:00:29.5]} 33. Kg1 {[%clk 0:00:32.1]} 33...
Ra8 {[%clk 0:00:19.3]} 34. Kf1 {[%clk 0:00:28.3]} 34... Ra6 {[%clk 0:00:14.9]}
35. d7 {[%clk 0:00:26.7]} 35... Bd8 {[%clk 0:00:14.6]} 36. c7 {[%clk 0:00:26.4]}
36... Bxc7 {[%clk 0:00:13.1]} 37. d8=Q {[%clk 0:00:27.1]} 37... Bxd8 {[%clk
0:00:13.3]} 38. Rxd8 {[%clk 0:00:27.9]} 38... Ra2 {[%clk 0:00:12.6]} 39. Rb8
{[%clk 0:00:18.6]} 39... Kf6 {[%clk 0:00:12.7]} 40. h4 {[%clk 0:00:17.7]} 40...
Ra4 {[%clk 0:00:10.5]} 41. Rb6+ {[%clk 0:00:16]} 41... Kf5 {[%clk 0:00:10.4]}
42. g3 {[%clk 0:00:15.8]} 42... Ra1+ {[%clk 0:00:09.6]} 43. Kg2 {[%clk
0:00:15.5]} 43... Ra2 {[%clk 0:00:10.5]} 44. Rb3 {[%clk 0:00:15.6]} 44... Kf6
{[%clk 0:00:10.2]} 45. Re3 {[%clk 0:00:15.5]} 45... Kf5 {[%clk 0:00:10.3]} 46.
Rb3 {[%clk 0:00:16.1]} 46... Ra4 {[%clk 0:00:10.6]} 47. Re3 {[%clk 0:00:16.1]}
47... Rd4 {[%clk 0:00:11]} 48. Rb3 {[%clk 0:00:14.8]} 48... Rd3 {[%clk
0:00:11.4]} 49. Rb8 {[%clk 0:00:14.6]} 49... e3 {[%clk 0:00:11.6]} 50. fxe3
{[%clk 0:00:12.9]} 50... Rxe3 {[%clk 0:00:11.7]} 51. Rb4 {[%clk 0:00:12.2]}
51... Ra3 {[%clk 0:00:11.6]} 52. Rb8 {[%clk 0:00:10.3]} 52... Rd3 {[%clk
0:00:11.3]} 53. Rb2 {[%clk 0:00:07.5]} 53... Rd4 {[%clk 0:00:11.8]} 54. Rb3
{[%clk 0:00:07.2]} 54... Ke6 {[%clk 0:00:10.8]} 55. Ra3 {[%clk 0:00:06.6]} 55...
Rd6 {[%clk 0:00:11]} 56. Rb3 {[%clk 0:00:06.3]} 56... e4 {[%clk 0:00:11.4]} 57.
Kf2 {[%clk 0:00:05.3]} 57... Ke5 {[%clk 0:00:11.6]} 58. Rb5+ {[%clk 0:00:05.2]}
58... Kd4 {[%clk 0:00:11.4]} 59. Rb4+ {[%clk 0:00:05.1]} 59... Kd3 {[%clk
0:00:11.5]} 60. Rb3+ {[%clk 0:00:04.7]} 60... Kc2 {[%clk 0:00:11.8]} 61. Re3
{[%clk 0:00:04.5]} 61... Re6 {[%clk 0:00:11.1]} 62. Re2+ {[%clk 0:00:04.6]}
62... Kd3 {[%clk 0:00:11.3]} 63. Re3+ {[%clk 0:00:05]} 63... Kd4 {[%clk
0:00:11.9]} 64. Re1 {[%clk 0:00:05]} 64... Rf6+ {[%clk 0:00:12.5]} 65. Ke2
{[%clk 0:00:04]} 65... e3 {[%clk 0:00:12.9]} 66. Ra1 {[%clk 0:00:03.8]} 66...
Ke4 {[%clk 0:00:13.5]} 67. Ra4+ {[%clk 0:00:03.4]} 67... Ke5 {[%clk 0:00:13.6]}
68. Kxe3 {[%clk 0:00:02.3]} 68... Rf1 {[%clk 0:00:14.2]} 69. Ra5+ {[%clk
0:00:02.6]} 69... Kf6 {[%clk 0:00:14.4]} 70. Ra6+ {[%clk 0:00:03.1]} 70... Kg7
{[%clk 0:00:15]} 71. Ra5 {[%clk 0:00:03.7]} 71... Kh6 {[%clk 0:00:15.3]} 72. Ra6
{[%clk 0:00:03.6]} 72... Rb1 {[%clk 0:00:15.2]} 73. Ra5 {[%clk 0:00:03.7]} 73...
Rb4 {[%clk 0:00:15.6]} 74. Rg5 {[%clk 0:00:03.7]} 74... Rg4 {[%clk 0:00:16]} 75.
Rxg4 {[%clk 0:00:03.7]} 75... hxg4 {[%clk 0:00:16.9]} 76. Kf4 {[%clk 0:00:04.3]}
76... Kh5 {[%clk 0:00:17.2]} 77. Ke5 {[%clk 0:00:04.4]} 77... g5 {[%clk
0:00:12.9]} 78. hxg5 {[%clk 0:00:04.5]} 78... Kxg5 {[%clk 0:00:13.8]} 79. Ke4
{[%clk 0:00:05.1]} 79... Kh5 {[%clk 0:00:13.6]} 80. Kf5 {[%clk 0:00:05.2]} 80...
Kh6 {[%clk 0:00:14.3]} 81. Kf4 {[%clk 0:00:05.4]} 81... Kh5 {[%clk 0:00:14.4]}
82. Kf5 {[%clk 0:00:05.9]} 82... Kh6 {[%clk 0:00:14.9]} 83. Kxg4 {[%clk
0:00:06.2]} 83... Kg6 {[%clk 0:00:15.2]} 84. Kf4 {[%clk 0:00:06.8]} 84... Kf6
{[%clk 0:00:15.6]} 85. g4 {[%clk 0:00:07.3]} 85... Kg6 {[%clk 0:00:16]} 86. g5
{[%clk 0:00:07.7]} 86... Kg7 {[%clk 0:00:16.2]} 87. g6 {[%clk 0:00:08.2]} 87...
Kxg6 {[%clk 0:00:16.3]} 1/2-1/2

[Event "*** Titled Tuesday Blitz"]
[Site "Chess.com"]
[Date "2021.03.09"]
[Round "1"]
[White "Alex-11211"]
[Black "anon102030"]
[Result "1/2-1/2"]
[WhiteElo "2391"]
[BlackElo "2698"]
[TimeControl "180+1"]
[EndTime "10:09:08 PST"]
[Termination "Game drawn by stalemate"]

1. e4 {[%clk 0:02:59.6]} 1... e5 {[%clk 0:02:56.8]} 2. Bc4 {[%clk 0:02:59.1]}
2... Nf6 {[%clk 0:02:55.6]} 3. Nc3 {[%clk 0:02:59.7]} 3... Nc6 {[%clk
0:02:46.4]} 4. d3 {[%clk 0:02:59.7]} 4... Bc5 {[%clk 0:02:45.2]} 5. f4 {[%clk
0:02:59.6]} 5... d6 {[%clk 0:02:43.6]} 6. Nf3 {[%clk 0:03:00]} 6... exf4 {[%clk
0:02:41.4]} 7. Bxf4 {[%clk 0:02:59.4]} 7... Be6 {[%clk 0:02:41.5]} 8. Bb3 {[%clk
0:02:58.6]} 8... d5 {[%clk 0:02:37.2]} 9. Bg5 {[%clk 0:02:38.3]} 9... dxe4
{[%clk 0:02:12.1]} 10. Nxe4 {[%clk 0:02:23.3]} 10... Be7 {[%clk 0:02:11.9]} 11.
Bxf6 {[%clk 0:01:52.6]} 11... Bxf6 {[%clk 0:02:12.8]} 12. Bxe6 {[%clk
0:01:52.3]} 12... fxe6 {[%clk 0:02:09.1]} 13. Nxf6+ {[%clk 0:01:47.6]} 13...
Qxf6 {[%clk 0:02:08.1]} 14. Qe2 {[%clk 0:01:46.3]} 14... O-O-O {[%clk
0:02:02.4]} 15. O-O-O {[%clk 0:01:45.4]} 15... e5 {[%clk 0:02:01.6]} 16. Rhe1
{[%clk 0:01:40.3]} 16... Rhe8 {[%clk 0:01:59.7]} 17. Kb1 {[%clk 0:01:36.1]}
17... h6 {[%clk 0:01:57.9]} 18. a3 {[%clk 0:01:25.9]} 18... g5 {[%clk
0:01:56.3]} 19. h3 {[%clk 0:01:25.8]} 19... a6 {[%clk 0:01:51]} 20. Qe4 {[%clk
0:01:22.1]} 20... Qd6 {[%clk 0:01:41.2]} 21. Re2 {[%clk 0:01:18.4]} 21... Re7
{[%clk 0:01:35.9]} 22. Rde1 {[%clk 0:01:18]} 22... Rf8 {[%clk 0:01:31.8]} 23.
Qc4 {[%clk 0:01:00.1]} 23... Kb8 {[%clk 0:01:29.5]} 24. Qc3 {[%clk 0:00:56.4]}
24... Rfe8 {[%clk 0:01:23.6]} 25. Re4 {[%clk 0:00:56.3]} 25... Qd5 {[%clk
0:01:22.5]} 26. R1e3 {[%clk 0:00:52.6]} 26... Qf7 {[%clk 0:01:10.7]} 27. Qe1
{[%clk 0:00:47.9]} 27... Qf6 {[%clk 0:01:10]} 28. Re2 {[%clk 0:00:46.8]} 28...
Kc8 {[%clk 0:01:08.9]} 29. Qg3 {[%clk 0:00:46.2]} 29... Kb8 {[%clk 0:01:00.8]}
30. R2e3 {[%clk 0:00:40]} 30... Re6 {[%clk 0:01:00.3]} 31. h4 {[%clk 0:00:39.4]}
31... gxh4 {[%clk 0:00:55.2]} 32. Qxh4 {[%clk 0:00:39.6]} 32... Rg8 {[%clk
0:00:49.2]} 33. Qh2 {[%clk 0:00:24.9]} 33... Re7 {[%clk 0:00:47.1]} 34. Nxe5
{[%clk 0:00:20.6]} 34... Nxe5 {[%clk 0:00:47.9]} 35. Rxe5 {[%clk 0:00:20.8]}
35... Rxe5 {[%clk 0:00:47.5]} 36. Rxe5 {[%clk 0:00:20.5]} 36... Qf1+ {[%clk
0:00:41.8]} 37. Ka2 {[%clk 0:00:20.5]} 37... Qxg2 {[%clk 0:00:42.7]} 38. Re8+
{[%clk 0:00:20.1]} 38... Ka7 {[%clk 0:00:40.5]} 39. Qxg2 {[%clk 0:00:17.9]}
39... Rxg2 {[%clk 0:00:39.5]} 40. Rh8 {[%clk 0:00:18.4]} 40... Rxc2 {[%clk
0:00:34]} 41. Rxh6 {[%clk 0:00:17.5]} 41... Rd2 {[%clk 0:00:34.3]} 42. Rh3
{[%clk 0:00:17.2]} 42... c6 {[%clk 0:00:34.5]} 43. Kb3 {[%clk 0:00:17.7]} 43...
Kb6 {[%clk 0:00:34.8]} 44. Kc3 {[%clk 0:00:18.2]} 44... Rg2 {[%clk 0:00:34.4]}
45. Rh4 {[%clk 0:00:18.2]} 45... Rg1 {[%clk 0:00:34.2]} 46. Rb4+ {[%clk
0:00:17.9]} 46... Kc7 {[%clk 0:00:34.3]} 47. Rh4 {[%clk 0:00:18.6]} 47... b5
{[%clk 0:00:34.6]} 48. Rh5 {[%clk 0:00:17.3]} 48... Kb6 {[%clk 0:00:34.6]} 49.
Kc2 {[%clk 0:00:17.3]} 49... Rg2+ {[%clk 0:00:34.5]} 50. Kc3 {[%clk 0:00:17.2]}
50... a5 {[%clk 0:00:35.4]} 51. Rf5 {[%clk 0:00:15.3]} 51... Rg1 {[%clk
0:00:34.7]} 52. Rh5 {[%clk 0:00:15.4]} 52... Rc1+ {[%clk 0:00:35.1]} 53. Kd2
{[%clk 0:00:15.3]} 53... Rb1 {[%clk 0:00:34.7]} 54. Kc3 {[%clk 0:00:15.4]} 54...
Rg1 {[%clk 0:00:33.7]} 55. Rf5 {[%clk 0:00:14.7]} 55... Rg4 {[%clk 0:00:33.9]}
56. Rh5 {[%clk 0:00:14.5]} 56... b4+ {[%clk 0:00:32.4]} 57. axb4 {[%clk
0:00:15.4]} 57... axb4+ {[%clk 0:00:33.3]} 58. Kc2 {[%clk 0:00:15.2]} 58... Rg2+
{[%clk 0:00:29.5]} 59. Kb3 {[%clk 0:00:15.2]} 59... c5 {[%clk 0:00:25.1]} 60.
Rd5 {[%clk 0:00:09.8]} 60... Rd2 {[%clk 0:00:20.2]} 61. Kc4 {[%clk 0:00:07.9]}
61... Rc2+ {[%clk 0:00:08.1]} 62. Kb3 {[%clk 0:00:07.7]} 62... Rd2 {[%clk
0:00:07.3]} 63. Rd6+ {[%clk 0:00:07.1]} 63... Kb5 {[%clk 0:00:07.2]} 64. Rd5
{[%clk 0:00:07.4]} 64... Rd1 {[%clk 0:00:07]} 65. Rd6 {[%clk 0:00:06.1]} 65...
Rxd3+ {[%clk 0:00:06.2]} 66. Rxd3 {[%clk 0:00:05.7]} 66... c4+ {[%clk
0:00:07.1]} 67. Kc2 {[%clk 0:00:06.3]} 67... cxd3+ {[%clk 0:00:08]} 68. Kxd3
{[%clk 0:00:07.2]} 68... Ka4 {[%clk 0:00:07.7]} 69. Kc4 {[%clk 0:00:06.9]} 69...
b3 {[%clk 0:00:05.5]} 70. Kc3 {[%clk 0:00:07.1]} 70... Ka5 {[%clk 0:00:06]} 71.
Kc4 {[%clk 0:00:07]} 71... Ka4 {[%clk 0:00:06.2]} 72. Kc3 {[%clk 0:00:07.5]}
72... Ka5 {[%clk 0:00:06.8]} 73. Kxb3 {[%clk 0:00:08.1]} 73... Kb5 {[%clk
0:00:07.3]} 74. Kc3 {[%clk 0:00:08.6]} 74... Kc5 {[%clk 0:00:07.8]} 75. Kb3
{[%clk 0:00:09]} 75... Kb5 {[%clk 0:00:08.1]} 76. Ka3 {[%clk 0:00:08.7]} 76...
Ka5 {[%clk 0:00:08.5]} 77. b4+ {[%clk 0:00:08.3]} 77... Kb5 {[%clk 0:00:08.6]}
78. Kb3 {[%clk 0:00:09.2]} 78... Kb6 {[%clk 0:00:09.2]} 79. Ka4 {[%clk 0:00:10]}
79... Ka6 {[%clk 0:00:09.4]} 80. Kb3 {[%clk 0:00:10.9]} 80... Kb5 {[%clk
0:00:09.5]} 81. Kc3 {[%clk 0:00:11.8]} 81... Kb6 {[%clk 0:00:10.1]} 82. Kc4
{[%clk 0:00:12.4]} 82... Kc6 {[%clk 0:00:10.7]} 83. b5+ {[%clk 0:00:13.2]} 83...
Kb6 {[%clk 0:00:11.3]} 84. Kb4 {[%clk 0:00:14.1]} 84... Kb7 {[%clk 0:00:11.6]}
85. Kc5 {[%clk 0:00:15]} 85... Kc7 {[%clk 0:00:11.8]} 86. Kb4 {[%clk 0:00:14.8]}
86... Kb6 {[%clk 0:00:11.8]} 87. Ka4 {[%clk 0:00:14.9]} 87... Kb7 {[%clk
0:00:12]} 88. Ka5 {[%clk 0:00:15.8]} 88... Ka7 {[%clk 0:00:12.3]} 89. Kb4 {[%clk
0:00:16.7]} 89... Kb6 {[%clk 0:00:12.5]} 90. Kc4 {[%clk 0:00:17.6]} 90... Kb7
{[%clk 0:00:13]} 91. Kc5 {[%clk 0:00:18.5]} 91... Kc7 {[%clk 0:00:13.5]} 92. b6+
{[%clk 0:00:19.3]} 92... Kb7 {[%clk 0:00:14]} 93. Kb5 {[%clk 0:00:20.2]} 93...
Kb8 {[%clk 0:00:14.4]} 94. Ka6 {[%clk 0:00:21.1]} 94... Ka8 {[%clk 0:00:14.6]}
95. b7+ {[%clk 0:00:22]} 95... Kb8 {[%clk 0:00:14.9]} 96. Kb6 {[%clk 0:00:22.8]}
1/2-1/2

[Event "*** Titled Tuesday Blitz"]
[Site "Chess.com"]
[Date "2021.03.09"]
[Round "1"]
[White "Cptn2"]
[Black "Goryachkina"]
[Result "1/2-1/2"]
[WhiteElo "2382"]
[BlackElo "2680"]
[TimeControl "180+1"]
[EndTime "10:09:12 PST"]
[Termination "Game drawn - insufficient material"]

1. e4 {[%clk 0:03:00.9]} 1... c5 {[%clk 0:02:59.4]} 2. Nf3 {[%clk 0:03:00.6]}
2... e6 {[%clk 0:02:59.5]} 3. c4 {[%clk 0:03:00.4]} 3... Nc6 {[%clk 0:02:40.5]}
4. Nc3 {[%clk 0:02:59]} 4... Nf6 {[%clk 0:02:36.9]} 5. Be2 {[%clk 0:02:57.9]}
5... d6 {[%clk 0:02:30.9]} 6. d4 {[%clk 0:02:56.7]} 6... cxd4 {[%clk 0:02:30]}
7. Nxd4 {[%clk 0:02:57.6]} 7... Be7 {[%clk 0:02:29]} 8. O-O {[%clk 0:02:57.7]}
8... O-O {[%clk 0:02:28.8]} 9. Be3 {[%clk 0:02:56.2]} 9... Bd7 {[%clk
0:02:23.6]} 10. f4 {[%clk 0:02:54.6]} 10... a6 {[%clk 0:02:17.5]} 11. Qd2 {[%clk
0:02:48.5]} 11... Rc8 {[%clk 0:02:16.3]} 12. Rac1 {[%clk 0:02:48.1]} 12... Re8
{[%clk 0:02:10.1]} 13. Bf3 {[%clk 0:02:46.8]} 13... Bf8 {[%clk 0:02:03.9]} 14.
Rfd1 {[%clk 0:02:46.3]} 14... Qa5 {[%clk 0:02:00.9]} 15. Nxc6 {[%clk 0:02:38.3]}
15... Bxc6 {[%clk 0:01:55.1]} 16. Nd5 {[%clk 0:02:37.4]} 16... Qxd2 {[%clk
0:01:45.1]} 17. Nxf6+ {[%clk 0:02:37.5]} 17... gxf6 {[%clk 0:01:46]} 18. Rxd2
{[%clk 0:02:38.2]} 18... f5 {[%clk 0:01:08.7]} 19. exf5 {[%clk 0:02:34.6]} 19...
exf5 {[%clk 0:01:08.1]} 20. Kf2 {[%clk 0:02:33.2]} 20... Bg7 {[%clk 0:01:03.5]}
21. b3 {[%clk 0:02:31.1]} 21... Re6 {[%clk 0:00:52]} 22. Re1 {[%clk 0:02:06.7]}
22... Rce8 {[%clk 0:00:48.4]} 23. Rd3 {[%clk 0:02:02.7]} 23... Bh6 {[%clk
0:00:36.5]} 24. g3 {[%clk 0:01:59.2]} 24... Bxf3 {[%clk 0:00:34.1]} 25. Kxf3
{[%clk 0:01:59.2]} 25... Kg7 {[%clk 0:00:29.8]} 26. Red1 {[%clk 0:01:59]} 26...
f6 {[%clk 0:00:21.5]} 27. Bf2 {[%clk 0:01:56.1]} 27... Re2 {[%clk 0:00:19.1]}
28. Rxd6 {[%clk 0:01:47.3]} 28... Rxa2 {[%clk 0:00:18.7]} 29. Rd7+ {[%clk
0:01:48.2]} 29... Kg6 {[%clk 0:00:18.7]} 30. Rxb7 {[%clk 0:01:47.4]} 30... Ree2
{[%clk 0:00:18.6]} 31. Be3 {[%clk 0:01:43.2]} 31... Rxh2 {[%clk 0:00:17.8]} 32.
Rd8 {[%clk 0:01:43.8]} 32... Rh1 {[%clk 0:00:14.3]} 33. Rg8+ {[%clk 0:01:40.7]}
33... Kh5 {[%clk 0:00:14.5]} 34. Bc5 {[%clk 0:01:26.1]} 34... Rf1+ {[%clk
0:00:13.9]} 35. Ke3 {[%clk 0:01:26.1]} 35... Re1+ {[%clk 0:00:08.5]} 36. Kd3
{[%clk 0:01:26.2]} 36... Ree2 {[%clk 0:00:06.4]} 37. Rxh7 {[%clk 0:01:17.9]}
37... a5 {[%clk 0:00:05.7]} 38. Be3 {[%clk 0:01:05.9]} 38... Reb2 {[%clk
0:00:04.1]} 39. Rgh8 {[%clk 0:00:54.2]} 39... Rxb3+ {[%clk 0:00:04.2]} 40. Kd4
{[%clk 0:00:54.8]} 40... Kg6 {[%clk 0:00:04.6]} 41. Rxh6+ {[%clk 0:00:54.7]}
41... Kf7 {[%clk 0:00:05.2]} 42. Kd5 {[%clk 0:00:52.9]} 42... Rxe3 {[%clk
0:00:04.6]} 43. R8h7+ {[%clk 0:00:50.6]} 43... Kg8 {[%clk 0:00:04.2]} 44. Ra7
{[%clk 0:00:51]} 44... Re8 {[%clk 0:00:04]} 45. Rxf6 {[%clk 0:00:47.1]} 45...
Rd2+ {[%clk 0:00:03.3]} 46. Kc5 {[%clk 0:00:45.4]} 46... Rc8+ {[%clk 0:00:03.5]}
47. Kb5 {[%clk 0:00:39.1]} 47... Rb2+ {[%clk 0:00:03.2]} 48. Ka6 {[%clk
0:00:36.3]} 48... Rxc4 {[%clk 0:00:03.3]} 49. Rxf5 {[%clk 0:00:17.8]} 49... a4
{[%clk 0:00:03.4]} 50. Rg5+ {[%clk 0:00:12.5]} 50... Kf8 {[%clk 0:00:03.9]} 51.
Rh5 {[%clk 0:00:11.1]} 51... Kg8 {[%clk 0:00:04.3]} 52. Rg5+ {[%clk 0:00:09.9]}
52... Kf8 {[%clk 0:00:04.2]} 53. Rd5 {[%clk 0:00:10.8]} 53... Rc8 {[%clk
0:00:02.6]} 54. Rb7 {[%clk 0:00:11.4]} 54... Rxb7 {[%clk 0:00:02.3]} 55. Kxb7
{[%clk 0:00:11.5]} 55... Rc3 {[%clk 0:00:03.2]} 56. g4 {[%clk 0:00:11.5]} 56...
Rc4 {[%clk 0:00:03.1]} 57. Rf5+ {[%clk 0:00:09]} 57... Kg7 {[%clk 0:00:03.6]}
58. g5 {[%clk 0:00:09.5]} 58... a3 {[%clk 0:00:03.7]} 59. Ra5 {[%clk 0:00:07.9]}
59... Rxf4 {[%clk 0:00:03.5]} 60. Rxa3 {[%clk 0:00:08.6]} 60... Rf5 {[%clk
0:00:04]} 61. Rg3 {[%clk 0:00:08.3]} 61... Kg6 {[%clk 0:00:04.2]} 62. Kc6 {[%clk
0:00:09.2]} 62... Rxg5 {[%clk 0:00:03.9]} 63. Rd3 {[%clk 0:00:10.1]} 63... Rf5
{[%clk 0:00:03.5]} 64. Kd7 {[%clk 0:00:11]} 64... Rf6 {[%clk 0:00:04.3]} 65. Rd5
{[%clk 0:00:11.5]} 65... Rf5 {[%clk 0:00:04.5]} 66. Rd2 {[%clk 0:00:11.2]} 66...
Rf7+ {[%clk 0:00:04.6]} 67. Kc6 {[%clk 0:00:12.1]} 67... Rf6+ {[%clk 0:00:05.1]}
68. Kc5 {[%clk 0:00:13]} 68... Rf5+ {[%clk 0:00:05.7]} 69. Kc4 {[%clk
0:00:13.9]} 69... Rf4+ {[%clk 0:00:06.3]} 70. Kd5 {[%clk 0:00:14]} 70... Rf5+
{[%clk 0:00:06.9]} 71. Ke4 {[%clk 0:00:14.7]} 71... Rf6 {[%clk 0:00:07.5]} 72.
Rg2+ {[%clk 0:00:14.9]} 72... Kf7 {[%clk 0:00:07.7]} 73. Ke5 {[%clk 0:00:15.8]}
73... Re6+ {[%clk 0:00:08.2]} 74. Kd5 {[%clk 0:00:16.4]} 74... Rf6 {[%clk
0:00:08.8]} 75. Rc2 {[%clk 0:00:16.7]} 75... Rf5+ {[%clk 0:00:09]} 76. Ke4
{[%clk 0:00:17.1]} 76... Rf6 {[%clk 0:00:09.9]} 77. Rc7+ {[%clk 0:00:17.3]}
77... Kg6 {[%clk 0:00:10.4]} 78. Rc5 {[%clk 0:00:17.8]} 78... Re6+ {[%clk
0:00:10.6]} 79. Kd4 {[%clk 0:00:18]} 79... Rf6 {[%clk 0:00:11]} 80. Rd5 {[%clk
0:00:18.3]} 80... Rf5 {[%clk 0:00:11.2]} 81. Kc5 {[%clk 0:00:19.2]} 81... Rxd5+
{[%clk 0:00:11.3]} 82. Kxd5 {[%clk 0:00:20.1]} 1/2-1/2